Cogmind - Beta 14 @@@ ROGUE MODE // 2025.01.15 @ 16:50:30 Player: Derk Result: Destroyed by G-34 Mercenary with Small Laser Performance ------------- Evolutions (0) 0 Regions Visited (1) 200 Robots Destroyed (21) 105 Value Destroyed (456) 456 Prototype IDs (0) 0 Alien Tech Used (0) 0 Bonus (0) 0 TOTAL SCORE: 761 Bonus ------- None Cogmind --------- Core Integrity 0/250 Matter 185/300 Energy 115/125 System Corruption 0% Temperature Warning (311) Movement Core (500) Ox9 Location -10/Materials Parts ------- > --- POWER (1) -------- Light Ion Engine > --- PROPULSION (2) --- (None) > --- UTILITY (2) ------ Large Storage Unit Light Armor Plating > --- WEAPON (2) ------- Autogun Mining Laser > --- INVENTORY (15) --- Compact Wheel Compact Wheel Seismic Detector Medium Armor Plating Tractor Beam Peak State ------------ > --- POWER ------------ Light Ion Engine > --- PROPULSION ------- Light Treads Light Treads > --- UTILITY ---------- Large Storage Unit Light Armor Plating > --- WEAPON ----------- Light Assault Rifle Light Assault Rifle > --- INVENTORY -------- Light Ion Engine Light Ion Engine Aluminum Leg Compact Wheel Compact Wheel Seismic Detector Medium Armor Plating Medium Armor Plating Medium Armor Plating Tractor Beam Light Assault Rifle Autogun Autogun Light Cannon Mining Laser [Rating: 9] Favorites ----------- Power Light Ion Engine Engine Light Ion Engine Propulsion Light Treads Treads Light Treads Leg Aluminum Leg Utility Seismic Detector Device Seismic Detector Storage Small Storage Unit Processor Signal Interpreter Protection Medium Armor Plating Weapon Light Assault Rifle Ballistic Gun Light Assault Rifle Ballistic Cannon Light Cannon Special Weapon Mining Laser Build | -11 -10 ------- Run | Yrd Mat Slots Evolved . | . . Power . | . . Propulsion . | . . Utility . | . . Weapon . | . . Parts Attached 30 | 7 23 Power 4 | 1 3 Engine 4 | 1 3 Core . | . . Reactor . | . . Propulsion 3 | 2 1 Treads 2 | 2 . Leg 1 | . 1 Wheel . | . . Hover . | . . Flight . | . . Utility 12 | 2 10 Device 4 | 1 3 Storage 2 | 1 1 Processor 1 | . 1 Hackware . | . . Protection 5 | . 5 Artifact . | . . Weapon 11 | 2 9 Energy Gun . | . . Energy Cannon . | . . Ballistic Gun 7 | 2 5 Ballistic Cannon 1 | . 1 Launcher . | . . Special Weapon 3 | . 3 Impact Weapon . | . . Slashing Weapon . | . . Piercing Weapon . | . . Special Melee Weapon . | . . Unidentified Prototypes . | . . Parts Lost 10 | . 10 Power 1 | . 1 Propulsion 2 | . 2 Utility 3 | . 3 Weapon 4 | . 4 Highest Loss Streak 10 | . 10 To Critical Strikes . | . . Average Slot Usage (%) 98 | . 98 Engine 13 | . 13 Treads 26 | . 26 Device 9 | . 9 Storage 14 | . 14 Protection 4 | . 4 Ballistic Gun 26 | . 26 Special Weapon 1 | . 1 Peak Build Rating 9 | 7 9 Average Rating 7 | 6 7 On Entrance 3 | . 7 Naked Turns . | . . Heaviest Build 34 | 11 34 Greatest Support 40 | 40 40 Greatest Overweight (x) . | . . Average Overweight (x) . | . . Largest Inventory Capacity 15 | 8 15 Average Capacity 9 | 7 13 Most Carried 15 | 6 15 Average Carried 7 | 5 10 Final Capacity 15 | 8 15 Final Carried 6 | 6 5 Class Distribution -------------------- 100% | Mutant Dominant Class ---------------- Mutant | -10/Materials Resources | -11 -10 ----------- Run | Yrd Mat Matter Collected 545 | 282 263 Remotely . | . . Salvage Created 615 | 91 524 Parts 44 | 5 39 Haulers Intercepted . | . . Recyclers Shooed . | . . Parts Field Recycled . | . . Retrieved Matter . | . . Parts Self-Destructed . | . . Prevented . | . . Kills | -11 -10 ------- Run | Yrd Mat Combat Hostiles Destroyed 15 | . 15 Guns 13 | . 13 Cannons 2 | . 2 Classes Destroyed 6 | 2 4 Tunneler 1 | 1 . Recycler 1 | 1 . Operator 1 | . 1 Watcher 3 | . 3 Swarmer 6 | . 6 Grunt 9 | . 9 Best Kill Streak 4 | 2 4 Combat Bots Only 4 | . 4 Max Kills in Single Turn 1 | 1 1 Gunslinging . | . . Exploded . | . . Melee . | . . Uniques/NPCs Destroyed . | . . Combat | -11 -10 -------- Run | Yrd Mat Hostile Shots Fired 192 | . 192 Missed 42 | . 42 Damage Taken 1668 | . 1668 Core 256 | . 256 Absorbed by Shields . | . . Core Remaining (%) 100 | 100 . Volleys Fired 74 | 6 68 Largest 2 | 2 2 Hottest 100 | 40 100 Shots Fired 144 | 12 132 Gun 130 | 12 118 Cannon 10 | . 10 Launcher . | . . Special 4 | . 4 Kinetic 140 | 12 128 Thermal 4 | . 4 Explosive . | . . Electromagnetic . | . . Robot Hit Streak 10 | 3 10 Robot Miss Streak 4 | 1 4 Penetration Max . | . . Secondary Targets 2 | . 2 Max Gunslinging Chain 1 | . 1 Shots Hit Robots 89 | 7 82 Core Hits 42 | 4 38 Critical Kills . | . . Critical Parts Destroyed 2 | . 2 Critical Strikes 2 | . 2 Destroy 2 | . 2 Melee Attacks . | . . Impact . | . . Slashing . | . . Piercing . | . . Sneak Attacks . | . . Combat Hostiles . | . . Follow-up Attacks . | . . Damage Inflicted 859 | 65 794 Guns 736 | 65 671 Cannons 123 | . 123 Explosions . | . . Melee . | . . Ramming . | . . Kinetic 859 | 65 794 Thermal . | . . Explosive . | . . Electromagnetic . | . . Impact . | . . Slashing . | . . Piercing . | . . Highest Corruption . | . . Average Corruption . | . . Corruption Purged . | . . Corruption Blocked . | . . Overload Shots . | . . Overflow Damage . | . . Projectiles . | . . Explosions . | . . Melee . | . . Knockbacks 2 | . 2 Impact . | . . Kinetic 2 | . 2 Secondary . | . . Self-Inflicted Damage . | . . Shots . | . . Rammed 1 | . 1 Targets Rammed 1 | . 1 Kicked . | . . Crushed . | . . Highest Temperature 316 | . 316 Average Temperature 57 | . 57 Received Heat Transfer 843 | . 843 Siege Activations . | . . Robots Corrupted . | . . Combat Hostiles . | . . Parts Fried . | . . Impact Corruptions . | . . Robots Melted . | . . Combat Hostiles . | . . Parts Melted . | . . Heat Transferred . | . . Parts Sabotaged . | . . Parts Stolen . | . . Parts Stripped . | . . Power Chain Reactions . | . . Alert | -11 -10 ------- Run | Yrd Mat Peak Influence 237 | 10 237 Initial . | . . Average 18 | 1 61 Maximum Alert Level 1 | . 1 Low Security (%) 99 | 100 96 Level 1 . | . 3 Level 2 . | . . Level 3 . | . . Level 4 . | . . Level 5 . | . . High Security . | . . Max Security . | . . Squads Dispatched 2 | . 2 Investigation 1 | . 1 Extermination . | . . Reinforcement 1 | . 1 Assault . | . . Garrison . | . . Intercept . | . . Searches Triggered . | . . Construction Impeded . | . . Haulers Reinforced . | . . Active Scanning Responses . | . . Cargo Convoy Interrupts . | . . Stealth | -11 -10 --------- Run | Yrd Mat Distress Signals 1 | . 1 Communications Jammed . | . . Distress Signals . | . . Times Spotted 28 | . 28 Peak Tracking Total 9 | . 9 Tactical Retreats 3 | . 3 Traps | -11 -10 ------- Run | Yrd Mat Traps Triggered 1 | . 1 Indirectly . | . . Trap Hack Attempts . | . . Triggered . | . . Disarmed . | . . Reprogrammed . | . . Reused . | . . Traps Extracted . | . . Installed . | . . Triggered . | . . Machines | -11 -10 ---------- Run | Yrd Mat Machines Disabled . | . . Max in Single Turn . | . . Machines Repaired . | . . Machines Dismantled . | . . Machines Sabotaged . | . . Overloaded Fab Kills . | . . Hacking | -11 -10 --------- Run | Yrd Mat Machines Accessed 3 | . 3 Terminals 2 | . 2 Fabricators . | . . Repair Stations . | . . Recycling Units 1 | . 1 Scanalyzers . | . . Garrison Access . | . . Total Hacks 8 | . 8 Successful 5 | . 5 Failed 3 | . 3 Catastrophic . | . . Database Lockouts . | . . Manual 8 | . 8 Terminals 7 | . 7 Fabricators . | . . Repair Stations . | . . Recycling Units 1 | . 1 Scanalyzers . | . . Garrison Access . | . . Terminal Hacks 1 | . 1 Locate Traps 1 | . 1 Fabricator Hacks . | . . Repair Station Hacks . | . . Recycling Unit Hacks . | . . Scanalyzer . | . . Garrison Access Hacks . | . . Unauthorized Hacks 4 | . 4 Terminals 3 | . 3 Botnet 2 | . 2 Skim 1 | . 1 Fabricators . | . . Repair Stations . | . . Recycling Units 1 | . 1 Tunnel 1 | . 1 Scanalyzers . | . . Garrison Access . | . . Data Cores Recovered . | . . Used . | . . Hacking Detections 2 | . 2 Full Trace Events . | . . Feedback Events . | . . Feedback Blocked . | . . Robot Schematics Acquired . | . . Robots Built . | . . Authchips . | . . Time . | . . Total Robot Build Rating . | . . Part Schematics Acquired . | . . Parts Built . | . . Authchips . | . . Time . | . . Total Part Build Rating . | . . Parts Repaired . | . . Time . | . . Parts Recycled . | . . Recycled Matter . | . . Retrieved Matter . | . . Retrieved Components . | . . Parts Scanalyzed . | . . Part Schematics Acquired . | . . Parts Damaged . | . . Bothacking | -11 -10 ------------ Run | Yrd Mat Used RIF Installer . | . . Robots Hacked . | . . Non-combat . | . . Combat . | . . Robot Hacks Applied . | . . Relay Couplers Released . | . . Fabnet Peak Effective % . | . . Robots Rewired . | . . Allies Hacked . | . . Hacks Repelled . | . . Allies | -11 -10 -------- Run | Yrd Mat Total Allies . | . . Largest Group . | . . Highest-Rated Group . | . . Highest-Rated Ally . | . . Total Orders . | . . Ally Attacks . | . . Total Damage . | . . Kills . | . . Allies Corrupted . | . . Allies Melted . | . . Intel | -11 -10 ------- Run | Yrd Mat Robot Analysis Total . | . . Derelict Logs Recovered . | . . Drone Launches . | . . Drone Recoveries . | . . Exploration | -11 -10 ------------- Run | Yrd Mat Turns Passed 3533 | 2498 1035 Spaces Moved 941 | 482 459 Core 4 | 4 . Treads 937 | 478 459 Legs . | . . Wheels . | . . Hover . | . . Flight . | . . Fastest Speed 50 | 50 160 Average Speed 159 | 159 160 Slowest Speed 160 | 160 160 Overloaded Moves . | . . Propulsion Burnouts . | . . Robots Hopped . | . . Cave-ins Triggered . | . . Exploration Rate (%) 63 | 62 65 Regions Visited 1 Branch Regions . Pre-discovered Areas 1 | . 1 Known Exits Taken . | . . Unknown Exits Taken 1 | 1 . Scrap Searched . | . . Spaces Dug 4 | . 4 Terrain Destroyed 4 | . 4 Melee . | . . Projectile 4 | . 4 AOE . | . . Terrain Rammed . | . . Walls Destroyed . | . . Machines Disabled . | . . Actions | -11 -10 --------- Run | Yrd Mat Total 2841 | 2200 641 Wait 1771 | 1700 71 Move 940 | 481 459 Hop . | . . Pick Up 17 | 6 11 Fast Attach 8 | 7 1 Attach 11 | . 11 Detach 1 | . 1 Swap 11 | . 11 Drop 7 | . 7 Fire 74 | 6 68 Melee . | . . Ram . | . . Kick . | . . Crush 1 | . 1 Escape Stasis . | . . Rewire . | . . Trap . | . . Miscellaneous . | . . Route ------- -11/Scrapyard -10/Materials (discovered 2 exits: *Mat / [*Min]) History --------- Turn | Location | Event 8 | -11/Scrapyard | Discovered new exit (range 15) 2360 | -11/Scrapyard | Assembled infested the area 2499 | -11/Scrapyard | Entered Materials 2500 | -10/Materials | Build established: Mutant 2873 | -10/Materials | Discovered new exit (range 16) 3139 | -10/Materials | Discovered new exit (range 14) 3252 | -10/Materials | Identified exit to Materials 3505 | -10/Materials | Core integrity fell below 50% 3525 | -10/Materials | Core integrity fell below 20% 3534 | -10/Materials | Destroyed by G-34 Mercenary with Small Laser Last Messages --------------- 03492_ R-06 Scavenger collects Lgt. Treads. 03498_ G-34 Mercenary destroyed. 03501_ Autogun destroyed. 03502_ Aluminum Leg destroyed. 03502_ G-34 Mercenary destroyed. 03504_ Critical hit (Burn: +37). 03507_ G-47 Trooper destroyed. 03511_ G-34 Mercenary knocked back. 03512_ Med. Armor Plating destroyed. 03512_ K-01 Serf collects debris. 03515_ Lgt. Assault Rifle destroyed. 03515_ K-01 Serf collects debris. 03519_ R-06 Scavenger collects Aluminum Leg. 03519_ K-01 Serf collects debris. 03519_ G-34 Mercenary knocked back. 03522_ G-34 Mercenary destroyed. 03522_ K-01 Serf collects debris. 03528_ G-34 Mercenary destroyed. 03531_ Lgt. Cannon destroyed. 03532_ K-01 Serf collects debris. Map ----- +----------------------------------------------------+ | ??????????????????????????????????????????????? | | ??????????????????????????????????????????????? | | ??????????????????????????????????????????????? | | ??????????????????????????????????????????????? | | ??????????????????????????????????????????????? | | ??????????????????????????????????????????????? | | ??????????????????????????????????????????????? | | ??????????????????????????????????????????????? | | ??????????????????????????????????????????????? | | ??????????????????????????????????????????????? | | ??????????????????????????????????????????????? | | ??????????????????????????????????????????????? | | ??????????????????????????????????????????????? | | ??????????????????????????????????????????????? | | ??????????????????????????????????????????????? | | ??????????????#???????????????????????????????? | | ?????????????? ????? #???????????????????????? | | ??????????????" ????? #?##############????????? | | ?????????????#T """ #? ?????????? | | ?????????????#" """ ?? ??????????? | | ?????????????# ?? ????????????? | | ?????????????? """ ???#% #?????????????? | | ######????????? """ ???#*[ #?????????????? | | #?????????? """????#%k= #?????????????? | | "" #??????????? ????# ![ #?????????????? | | Y" +???????????#/#????#@%=^ ^#?????????????? | | "" # ######### ######%** #?????????????? | | # !% [% #?????????????? | | # g g #?????????????? | | ###### % #?????????????? | | ?????# ##########+####### #?????????????? | | ??????????????# #???######?????????????? | | ??????????????# """ #??????????????????????? | | ??????????????# """ #??????????????????????? | | ##???# ?????# """ #??????????????????????? | | !##??# #????# #??????????????????????? | | !#??# #????# [ = #??????????????????????? | | !#??# #????# %#??????????????????????? | | #??# ###### "Y" #??????????????????????? | | !#??# ^ %+ """ #??????????????????????? | | !##??# ^ #######+##??????????????????????? | | ##???#^ """ #?????# #???????????????????????? | | ?????# ^ R" #?????# #???????????????????????? | | ?????# ^ """ #?????# #???????????????????????? | | ###### [^% #?????# #???????????????????????? | | # * =#?????# #???????????????????????? | | # ^ #?????# ##### #???????????????? | | """ # ^""" ###???# +???????????????? | | """" #% """ #???####### #???????????????? | | """" # """ #?????????????????????????????? | +----------------------------------------------------+ Best States ------------- Heat Dissipation 25 Energy Generation 10 Energy Capacity 250 Matter Stores 300 Matter Capacity 300 Sight Range 16 Terrain Scan Density 10 Armor Coverage 225 Evasion (%) 40 Recoil Reduction 2 Item Schematics ----------------- None Robot Schematics ------------------ None Fabricated ------------ Nothing Alien Tech Used ----------------- None Achievements -------------- Curiosity Killed The Cat Challenges ------------ None Game ------ Seed ImpulseAlertReplicator Manual? 0 Play Time 00:14:26 Cumulative 413.2 hours Start 2025.01.15 @ 14:12:45 End 2025.01.15 @ 16:50:30 Sessions 3 Manual Loads 0 Difficulty Rogue Special Mode None Game No. 177 Rogue 177 Adventurer 0 Explorer 0 Win Type - Total 15 Types 13/0/1/1/0/0/0/0/0 Lore% 74 Gallery% 81 Achievement% 69 Wizard Run 0 Options --------- Layout 0 ASCII 0 Keyboard 0 Movement Numpad Keybinds 0 Fullscreen 1 Font 24/X11 Map View 76x50 Zoom Use 0% Tactical HUD 1 Map Filters NONE Filters NONE Steam 1 RUN: 0c5f6486-b3cc-4ce0-8dd1-8c84ccf0e83a